fUSD/lending_fUSD_20240428
["ID","MTS","AMOUNT","RATE_DAILY","PERIOD"]
[6394,1714327873010,-500.0,0.00011506,2]
[6395,1714327873019,-668.26,0.00011506,2]
[6396,1714327873031,-500.0,0.00011506,2]
[6397,1714327873042,-500.0,0.00011506,2]
[6398,1714327873051,-500.0,0.00011506,2]
[6399,1714327873062,-1318.03,0.00011506,2]
[6400,1714327873072,-500.0,0.00011506,2]
[6401,1714327873081,-500.0,0.00011506,2]
[6402,1714327873093,-513.15,0.00011506,2]
[6403,1714327873105,-515.14,0.00011506,2]
[6405,1714327873124,-916.96,0.00011506,2]
[6407,1714327873142,-1227.32,0.00011506,2]
[6409,1714327873162,-500.0,0.00011506,2]
[6411,1714327873182,-502.92534761,0.00011506,2]
[6413,1714327873202,-500.0,0.00011506,2]
[6415,1714327873221,-596.77,0.00011506,2]
[6417,1714327873240,-500.0,0.00011506,2]
[6419,1714327873259,-551.25,0.00011506,2]
[6420,1714327873287,-850.44,0.00011506,2]
[6421,1714327873296,-500.0,0.00011506,2]
[6422,1714327873306,-500.0,0.00011506,2]
[6423,1714327873316,-500.0,0.00011506,2]
[6424,1714327873325,-521.83,0.00011506,2]
[6425,1714327873338,-635.46,0.00011506,2]
[6426,1714327873347,-500.0,0.00011506,2]
[6427,1714327873357,-500.0,0.00011506,2]
[6428,1714327873366,-500.0,0.00011506,2]
[6429,1714327873375,-500.0,0.00011506,2]
[6430,1714327873386,-1366.8,0.00011506,2]
[6431,1714327873396,-500.0,0.00011506,2]
[6432,1714327873405,-500.0,0.00011506,2]
[6433,1714327873414,-500.0,0.00011506,2]
[6435,1714327873436,-500.0,0.00011506,2]
[6437,1714327873454,-500.0,0.00011506,2]
[6439,1714327873475,-2601.22,0.00011506,2]
[6441,1714327873493,-500.0,0.00011506,2]
[6443,1714327873512,-584.86,0.00011506,2]
[6445,1714327873531,-500.0,0.00011506,2]
[6447,1714327873550,-520.57,0.00011506,2]
[6449,1714327873569,-500.0,0.00011506,2]
[6451,1714327873588,-1104.97,0.00011506,2]
[6453,1714327873607,-500.0,0.00011506,2]
[6455,1714327873627,-878.68,0.00011506,2]
[6457,1714327873647,-500.0,0.00011506,2]
[6459,1714327873665,-500.0,0.00011506,2]
[6461,1714327873683,-500.0,0.00011506,2]
[6463,1714327873701,-500.0,0.00011506,2]
[6465,1714327873720,-634.21,0.00011506,2]
[6466,1714327873729,-500.0,0.00011506,2]
[6467,1714327873738,-1071.7,0.00011506,2]
[6468,1714327873748,-574.37,0.00011506,2]
[6469,1714327873758,-500.0,0.00011506,2]
[6470,1714327873767,-500.0,0.00011506,2]
[6471,1714327873777,-500.0,0.00011506,2]
[6473,1714327873796,-825.25,0.00011506,2]
[6475,1714327873815,-500.0,0.00011506,2]
[6477,1714327873835,-500.0,0.00011506,2]
[6478,1714327873844,-649.42,0.00011506,2]
[6479,1714327873854,-500.0,0.00011506,2]
[6481,1714327873873,-500.0,0.00011506,2]
[6482,1714327873883,-840.05,0.00011506,2]
[6483,1714327873892,-1083.93,0.00011506,2]
[6485,1714327873911,-500.0,0.00011506,2]
[6487,1714327873930,-1452.61,0.00011506,2]
[6489,1714327873950,-1374.95,0.00011506,2]
[6491,1714327873969,-500.0,0.00011506,2]
[6493,1714327873987,-535.46,0.00011506,2]
[6495,1714327874006,-500.0,0.00011506,2]
[6497,1714327874024,-500.0,0.00011506,2]
[6499,1714327874044,-500.0,0.00011506,2]
[6501,1714327874063,-621.25,0.00011506,2]
[6503,1714327874082,-511.58949964,0.00011506,2]
[6505,1714327874100,-984.45,0.00011506,2]
[6507,1714327874119,-505.50048733,0.00011506,2]
[6509,1714327874138,-643.01,0.00011506,2]
[6511,1714327874157,-500.0,0.00011506,2]
[6513,1714327874177,-500.0,0.00011506,2]
[6515,1714327874197,-932.25,0.00011506,2]
[6517,1714327874216,-501.3469974,0.00011506,2]
[6519,1714327874235,-998.84,0.00011506,2]
[6521,1714327874255,-1464.99,0.00011506,2]
[6523,1714327874275,-545.66880312,0.00011506,2]
[6525,1714327874294,-500.0,0.00011506,2]
[6527,1714327874313,-500.0,0.00011506,2]
[6529,1714327874334,-500.0,0.00011506,2]
[6531,1714327874356,-500.0,0.00011506,2]
[6533,1714327874376,-500.0,0.00011506,2]
[6535,1714327874396,-1439.92,0.00011506,2]
[6537,1714327874417,-500.0,0.00011506,2]
[6539,1714327874437,-502.52,0.00011506,2]
[6541,1714327874455,-500.0,0.00011506,2]
[6543,1714327874475,-500.0,0.00011506,2]
[6545,1714327874494,-500.0,0.00011506,2]
[6547,1714327874514,-795.46,0.00011506,2]
[6549,1714327874534,-500.0,0.00011506,2]
[6550,1714327874545,-500.0,0.00011506,2]
[6551,1714327874556,-500.0,0.00011506,2]
[6553,1714327874576,-500.0,0.00011506,2]
[6554,1714327874586,-1078.81,0.00011506,2]
[6555,1714327874595,-500.0,0.00011506,2]
[6556,1714327874605,-500.0,0.00011506,2]
[6557,1714327874615,-1630.06,0.00011506,2]
[6558,1714327874624,-500.0,0.00011506,2]
[6559,1714327874633,-396.03977608,0.00011506,2]
[6560,1714327874643,-909.28,0.00011506,2]
[6561,1714327874653,-1319.4,0.00011506,2]
[6562,1714327874662,-500.0,0.00011506,2]
[6563,1714327874671,-1798.47,0.00011506,2]
[6564,1714327874681,-1245.89,0.00011506,2]
[6565,1714327874691,-500.0,0.00011506,2]
[6566,1714327874700,-500.0,0.00011506,2]
[6567,1714327874709,-500.0,0.00011506,2]
[6568,1714327874719,-500.0,0.00011506,2]
[6569,1714327874729,-500.0,0.00011506,2]
[6570,1714327874739,-500.0,0.00011506,2]
[6571,1714327874748,-500.0,0.00011506,2]
[6572,1714327874758,-584.91,0.00011506,2]
[6573,1714327874768,-869.51,0.00011506,2]
[6574,1714327874778,-775.65,0.00011506,2]
[6575,1714327874788,-500.0,0.00011506,2]
[6576,1714327874798,-849.06,0.00011506,2]
[6577,1714327874808,-500.0,0.00011506,2]
[6578,1714327874817,-500.0,0.00011506,2]
[6579,1714327874827,-500.0,0.00011506,2]
[6581,1714327874847,-500.0,0.00011506,2]
[6583,1714327874867,-500.0,0.00011506,2]
[6585,1714327874886,-500.0,0.00011506,2]
[6587,1714327874905,-545.78,0.00011506,2]
[6588,1714327874914,-500.0,0.00011506,2]
[6589,1714327874924,-2005.3,0.00011506,2]
[6591,1714327874943,-500.0,0.00011506,2]
[6593,1714327874963,-500.0,0.00011506,2]
[6595,1714327874982,-500.0,0.00011506,2]
[6597,1714327875002,-157.01543514,0.00011506,2]
[6599,1714327875020,-500.0,0.00011506,2]
[6601,1714327875040,-1562.19,0.00011506,2]
[6603,1714327875060,-500.0,0.00011506,2]
[6605,1714327875079,-503.39317392,0.00011506,2]
[6607,1714327875099,-500.0,0.00011506,2]
[6609,1714327875119,-545.02,0.00011506,2]
[6611,1714327875140,-500.0,0.00011506,2]
[6613,1714327875159,-503.78602624,0.00011506,2]
[6615,1714327875179,-500.0,0.00011506,2]
[6617,1714327875199,-356.63814823,0.00011506,2]
[6619,1714327875219,-500.0,0.00011506,2]
[6621,1714327875239,-500.0,0.00011506,2]
[6623,1714327875259,-1220.25,0.00011506,2]
[6625,1714327875279,-500.0,0.00011506,2]
[6626,1714327875289,-579.46481497,0.00011506,2]
[6627,1714327875299,-500.0,0.00011506,2]
[6628,1714327875308,-500.0,0.00011506,2]
[6629,1714327875318,-780.64,0.00011506,2]
[6631,1714327875341,-500.0,0.00011506,2]
[6632,1714327875351,-500.0,0.00011506,2]
[6633,1714327875361,-500.0,0.00011506,2]
[6634,1714327875370,-500.0,0.00011506,2]
[6635,1714327875380,-1073.37,0.00011506,2]
[6637,1714327875399,-2809.17,0.00011506,2]
[6639,1714327875420,-500.0,0.00011506,2]
[6641,1714327875439,-500.0,0.00011506,2]
[6643,1714327875458,-500.0,0.00011506,2]
[6645,1714327875478,-500.0,0.00011506,2]
[6647,1714327875497,-500.0,0.00011506,2]
[6649,1714327875516,-1594.35,0.00011506,2]
[6651,1714327875538,-797.41,0.00011506,2]
[6653,1714327875558,-624.48,0.00011506,2]
[6655,1714327875577,-500.0,0.00011506,2]
[6657,1714327875596,-933.77,0.00011506,2]
[6659,1714327875615,-632.40887518,0.00011506,2]
[6661,1714327875635,-677.85,0.00011506,2]
[6663,1714327875654,-500.0,0.00011506,2]
[6665,1714327875673,-2313.19,0.00011506,2]
[6666,1714327875683,-1362.9,0.00011506,2]
[6667,1714327875692,-1006.23,0.00011506,2]
[6668,1714327875701,-1132.55,0.00011506,2]
[6669,1714327875711,-500.0,0.00011506,2]
[6670,1714327875720,-500.0,0.00011506,2]
[6671,1714327875730,-500.0,0.00011506,2]
[6672,1714327875739,-945.42,0.00011506,2]
[6673,1714327875749,-503.77923439,0.00011506,2]
[6675,1714327875768,-158.30213509,0.00011506,2]
[6677,1714327875787,-1229.87,0.00011506,2]
[6679,1714327875805,-500.0,0.00011506,2]
[6681,1714327875824,-503.94756847,0.00011506,2]
[6683,1714327875843,-500.0,0.00011506,2]
[6685,1714327875861,-500.0,0.00011506,2]
[6687,1714327875880,-742.48,0.00011506,2]
[6689,1714327875900,-687.59,0.00011506,2]
[6690,1714327875909,-692.65,0.00011506,2]
[6691,1714327875919,-646.2,0.00011506,2]
[6692,1714327875929,-1778.24,0.00011506,2]
[6693,1714327875938,-507.64,0.00011506,2]
[6694,1714327875948,-1142.66,0.00011506,2]
[6695,1714327875957,-545.3722368,0.00011506,2]
[6697,1714327875975,-500.0,0.00011506,2]
[6699,1714327875995,-500.0,0.00011506,2]
[6700,1714327876004,-1406.26,0.00011506,2]
[6701,1714327876013,-500.0,0.00011506,2]
[6702,1714327876023,-362.29492068,0.00011506,2]
[6703,1714327876033,-1255.01,0.00011506,2]
[6704,1714327876042,-597.93,0.00011506,2]
[6705,1714327876052,-500.0,0.00011506,2]
[6707,1714327876071,-535.6,0.00011506,2]
[6709,1714327876091,-500.0,0.00011506,2]
[6711,1714327876110,-500.0,0.00011506,2]
[6713,1714327876129,-500.0,0.00011506,2]
[6715,1714327876345,-963.36,0.00011506,2]
[6717,1714327876364,-500.0,0.00011506,2]
[6718,1714327876374,-894.73,0.00011506,2]
[6719,1714327876385,-500.0,0.00011506,2]
[6721,1714327876404,-500.0,0.00011506,2]
[6723,1714327876424,-999.0,0.00011506,2]
[6725,1714327876444,-500.0,0.00011506,2]
[6727,1714327876463,-688.85,0.00011506,2]
[6729,1714327876482,-500.0,0.00011506,2]
[6731,1714327876500,-626.13,0.00011506,2]
[6732,1714327876510,-2215.33,0.00011506,2]
[6733,1714327876519,-500.0,0.00011506,2]
[6734,1714327876528,-212.32710044,0.00011506,2]
[6735,1714327876539,-500.0,0.00011506,2]
[6736,1714327876549,-500.0,0.00011506,2]
[6737,1714327876557,-500.0,0.00011506,2]
[6738,1714327876566,-500.0,0.00011506,2]
[6739,1714327876575,-500.0,0.00011506,2]
[6741,1714327876594,-500.0,0.00011506,2]
[6743,1714327876612,-1247.47,0.00011506,2]
[6745,1714327876631,-500.0,0.00011506,2]
[6747,1714327876650,-500.0,0.00011506,2]
[6749,1714327876668,-500.0,0.00011506,2]
[6751,1714327876688,-500.0,0.00011506,2]
[6753,1714327876708,-500.0,0.00011506,2]
[6755,1714327876727,-500.0,0.00011506,2]
[6756,1714327876736,-500.0,0.00011506,2]
[6757,1714327876745,-700.68,0.00011506,2]
[6758,1714327876755,-500.0,0.00011506,2]
[6759,1714327876764,-500.0,0.00011506,2]
[6760,1714327876774,-1000.0,0.00011506,2]
[6761,1714327876784,-1928.76,0.00011506,2]
[6763,1714327876803,-500.0,0.00011506,2]
[6764,1714327876812,-500.0,0.00011506,2]
[6765,1714327876822,-1614.43,0.00011506,2]
[6767,1714327876842,-500.0,0.00011506,2]
[6769,1714327876862,-500.0,0.00011506,2]
[6771,1714327876881,-973.03,0.00011506,2]
[6773,1714327876901,-500.0,0.00011506,2]
[6775,1714327876920,-500.0,0.00011506,2]
[6777,1714327876939,-1618.32,0.00011506,2]
[6779,1714327876958,-503.62296859,0.00011506,2]
[6781,1714327876978,-500.0,0.00011506,2]
[6783,1714327876997,-500.0,0.00011506,2]
[6785,1714327877015,-500.0,0.00011506,2]
[6786,1714327877024,-500.0,0.00011506,2]
[6787,1714327877035,-568.18,0.00011506,2]
[6788,1714327877044,-593.64,0.00011506,2]
[6789,1714327877054,-500.0,0.00011506,2]
[6791,1714327877073,-816.47,0.00011506,2]
[6793,1714327877091,-501.35,0.00011506,2]
[6795,1714327877110,-513.17,0.00011506,2]
[6797,1714327877128,-571.35,0.00011506,2]
[6799,1714327877148,-1221.56,0.00011506,2]
[6800,1714327877158,-500.0,0.00011506,2]
[6801,1714327877167,-500.0,0.00011506,2]
[6803,1714327877187,-1444.15,0.00011506,2]
[6805,1714327877205,-574.0,0.00011506,2]
[6807,1714327877224,-500.0,0.00011506,2]
[6809,1714327877243,-500.0,0.00011506,2]
[6810,1714327877252,-502.75288815,0.00011506,2]
[6811,1714327877262,-601.5,0.00011506,2]
[6812,1714327877271,-500.0,0.00011506,2]
[6813,1714327877280,-904.78,0.00011506,2]
[6814,1714327877291,-536.52,0.00011506,2]
[6815,1714327877299,-551.24,0.00011506,2]
[6816,1714327877309,-500.0,0.00011506,2]
[6817,1714327877318,-500.0,0.00011506,2]
[6818,1714327877327,-500.0,0.00011506,2]
[6819,1714327877340,-500.0,0.00011506,2]
[6821,1714327877360,-682.57,0.00011506,2]
[6823,1714327877380,-511.11177,0.00011506,2]
[6825,1714327877399,-1344.38,0.00011506,2]
[6827,1714327877419,-500.0,0.00011506,2]
[6829,1714327877438,-551.75,0.00011506,2]
[6831,1714327877457,-984.25,0.00011506,2]
[6833,1714327877475,-159.67412421,0.00011506,2]
[6835,1714327877494,-706.35,0.00011506,2]
[6837,1714327877512,-500.0,0.00011506,2]
[6839,1714327877531,-500.0,0.00011506,2]
[6840,1714327877540,-1448.09,0.00011506,2]
[6841,1714327877549,-150.0,0.00011506,2]
[6842,1714327877558,-649.7,0.00011506,2]
[6843,1714327877567,-500.0,0.00011506,2]
[6844,1714327877577,-951.88,0.00011506,2]
[6845,1714327877586,-500.0,0.00011506,2]
[6846,1714327877595,-641.53457549,0.00011506,2]
[6847,1714327877604,-500.0,0.00011506,2]
[6848,1714327877613,-500.0,0.00011506,2]
[6849,1714327877622,-500.0,0.00011506,2]
[6850,1714327877631,-524.75,0.00011506,2]
[6851,1714327877640,-165.08264636,0.00011506,2]
[6852,1714327877649,-964.68,0.00011506,2]
[6853,1714327877659,-500.0,0.00011506,2]
[6854,1714327877668,-593.02,0.00011506,2]
[6855,1714327877677,-1208.23,0.00011506,2]
[6856,1714327877686,-500.0,0.00011506,2]
[6857,1714327877695,-1160.93,0.00011506,2]
[6858,1714327877704,-1589.78,0.00011506,2]
[6859,1714327877713,-588.04,0.00011506,2]
[6860,1714327877723,-1046.22,0.00011506,2]
[6861,1714327877732,-500.0,0.00011506,2]
[6862,1714327877743,-500.0,0.00011506,2]
[6863,1714327877753,-500.0,0.00011506,2]
[6864,1714327877763,-500.0,0.00011506,2]
[6865,1714327877773,-500.0,0.00011506,2]
[6866,1714327877782,-500.0,0.00011506,2]
[6867,1714327877792,-500.0,0.00011506,2]
[6869,1714327877811,-500.0,0.00011506,2]
[6871,1714327877830,-541.03,0.00011506,2]
[6873,1714327877848,-500.0,0.00011506,2]
[6875,1714327877867,-500.0,0.00011506,2]
[6876,1714327877876,-506.98571143,0.00011506,2]
[6877,1714327877885,-500.0,0.00011506,2]
[6879,1714327877903,-652.35,0.00011506,2]
[6881,1714327877922,-500.0,0.00011506,2]
[6883,1714327877940,-500.0,0.00011506,2]
[6885,1714327877959,-775.0,0.00011506,2]
[6887,1714327877976,-997.97,0.00011506,2]
[6889,1714327877995,-500.0,0.00011506,2]
[6891,1714327878013,-500.0,0.00011506,2]
[6893,1714327878032,-756.89,0.00011506,2]
[6895,1714327878051,-673.34,0.00011506,2]
[6896,1714327878060,-500.0,0.00011506,2]
[6897,1714327878069,-500.0,0.00011506,2]
[6899,1714327878088,-500.0,0.00011506,2]
[6901,1714327878106,-500.0,0.00011506,2]
[6903,1714327878124,-500.0,0.00011506,2]
[6905,1714327878143,-500.0,0.00011506,2]
[6907,1714327878162,-500.0,0.00011506,2]
[6908,1714327878171,-1661.13,0.00011506,2]
[6909,1714327878180,-1102.79,0.00011506,2]
[6910,1714327878190,-500.0,0.00011506,2]
[6911,1714327878199,-532.78,0.00011506,2]
[6912,1714327878209,-1392.54,0.00011506,2]
[6913,1714327878219,-500.0,0.00011506,2]
[6914,1714327878228,-500.0,0.00011506,2]
[6915,1714327878238,-500.0,0.00011506,2]
[6917,1714327878257,-500.0,0.00011506,2]
[6919,1714327878276,-1842.91,0.00011506,2]
[6921,1714327878295,-500.0,0.00011506,2]
[6923,1714327878314,-500.0,0.00011506,2]
[6925,1714327878336,-1229.35,0.00011506,2]
[6927,1714327878360,-500.0,0.00011506,2]
[6929,1714327878379,-715.19,0.00011506,2]
[6931,1714327878402,-500.0,0.00011506,2]
[6933,1714327878421,-1815.9,0.00011506,2]
[6935,1714327878440,-700.33,0.00011506,2]
[6937,1714327878459,-554.28559275,0.00011506,2]
[6939,1714327878478,-1217.27,0.00011506,2]
[6940,1714327878488,-500.0,0.00011506,2]
[6941,1714327878498,-500.0,0.00011506,2]
[6943,1714327878516,-694.36,0.00011506,2]
[6945,1714327878535,-500.0,0.00011506,2]
[6947,1714327878554,-536.5,0.00011506,2]
[6949,1714327878573,-500.0,0.00011506,2]
[6951,1714327878591,-500.0,0.00011506,2]
[6953,1714327878609,-932.09,0.00011506,2]
[6955,1714327878628,-500.0,0.00011506,2]
[6957,1714327878647,-623.67,0.00011506,2]
[6959,1714327878666,-500.0,0.00011506,2]
[6961,1714327878685,-500.0,0.00011506,2]
[6963,1714327878704,-1453.55,0.00011506,2]
[6965,1714327878722,-527.58,0.00011506,2]
[6966,1714327878732,-544.66,0.00011506,2]
[6967,1714327878741,-1458.34,0.00011506,2]
[6969,1714327878761,-500.0,0.00011506,2]
[6970,1714327878772,-500.0,0.00011506,2]
[6971,1714327878782,-500.0,0.00011506,2]
[6972,1714327878793,-500.0,0.00011506,2]
[6973,1714327878802,-925.22,0.00011506,2]
[6974,1714327878812,-500.0,0.00011506,2]
[6975,1714327878823,-546.96,0.00011506,2]
[6976,1714327878832,-500.0,0.00011506,2]
[6977,1714327878842,-500.0,0.00011506,2]
[6978,1714327878852,-505.05,0.00011506,2]
[6979,1714327878861,-580.35432314,0.00011506,2]
[6980,1714327878871,-732.22,0.00011506,2]
[6981,1714327878881,-500.0,0.00011506,2]
[6982,1714327878890,-500.0,0.00011506,2]
[6983,1714327878900,-583.31,0.00011506,2]
[6984,1714327878910,-500.0,0.00011506,2]
[6985,1714327878919,-500.0,0.00011506,2]
[6986,1714327878929,-523.5,0.00011506,2]
[6987,1714327878938,-502.32,0.00011506,2]
[6989,1714327878956,-501.93,0.00011506,2]
[6991,1714327878974,-688.47,0.00011506,2]
[6993,1714327878994,-500.0,0.00011506,2]
[6995,1714327879013,-854.99,0.00011506,2]
[6996,1714327879023,-1127.47,0.00011506,2]
[6997,1714327879032,-501.02906897,0.00011506,2]
[6998,1714327879043,-810.95,0.00011506,2]
[6999,1714327879053,-1455.26,0.00011506,2]
[7000,1714327879063,-518.29845324,0.00011506,2]
[7001,1714327879074,-500.0,0.00011506,2]
[7002,1714327879085,-619.56,0.00011506,2]
[7003,1714327879095,-478.88176153,0.00011506,2]
[7004,1714327879104,-500.0,0.00011506,2]
[7005,1714327879113,-500.0,0.00011506,2]
[7006,1714327879123,-500.0,0.00011506,2]
[7007,1714327879132,-500.0,0.00011506,2]
[7008,1714327879142,-500.0,0.00011506,2]
[7009,1714327879154,-589.63,0.00011506,2]
[7010,1714327879165,-1243.36,0.00011506,2]
[7011,1714327879174,-765.61,0.00011506,2]
[7012,1714327879184,-500.0,0.00011506,2]
[7013,1714327879193,-500.0,0.00011506,2]
[7014,1714327879203,-1736.13,0.00011506,2]
[7015,1714327879212,-1333.46,0.00011506,2]
[7017,1714327879231,-500.0,0.00011506,2]
[7019,1714327879250,-1559.91,0.00011506,2]
[7021,1714327879269,-659.4,0.00011506,2]
[7023,1714327879290,-1958.59,0.00011506,2]
[7025,1714327879491,-1359.52,0.00011506,2]
[7026,1714327879502,-500.0,0.00011506,2]
[7027,1714327879512,-500.0,0.00011506,2]
[7029,1714327879531,-500.0,0.00011506,2]
[7031,1714327879551,-500.0,0.00011506,2]
[7032,1714327879559,-500.0,0.00011506,2]
[7033,1714327879570,-556.94,0.00011506,2]
[7034,1714327879580,-628.53,0.00011506,2]
[7035,1714327879589,-500.0,0.00011506,2]
[7036,1714327879598,-500.0,0.00011506,2]
[7037,1714327879608,-500.0,0.00011506,2]
[7038,1714327879618,-1414.99,0.00011506,2]
[7039,1714327879629,-833.94,0.00011506,2]
[7041,1714327879649,-19196.82,0.00011506,2]
[7043,1714327879668,-45095.54,0.00011506,2]
[7045,1714327879686,-500.0,0.00011506,2]
[7047,1714327879705,-514.94,0.00011506,2]
[7049,1714327879723,-500.0,0.00011506,2]
[7051,1714327879743,-1488.53,0.00011506,2]
[7053,1714327879762,-500.0,0.00011506,2]
[7055,1714327879780,-500.0,0.00011506,2]
[7057,1714327879800,-4051.2,0.00011506,2]
[7059,1714327879821,-4295.84,0.00011506,2]
[7061,1714327879840,-1952.79,0.00011506,2]
[7063,1714327879860,-632.87,0.00011506,2]
[7064,1714327879872,-502.28385926,0.00011506,2]
[7065,1714327879882,-1196.35,0.00011506,2]
[7066,1714327879892,-500.0,0.00011506,2]
[7067,1714327879903,-500.0,0.00011506,2]
[7068,1714327879913,-1475.93,0.00011506,2]
[7069,1714327879925,-1307.66,0.00011506,2]
[7071,1714327879946,-534.39,0.00011506,2]
[7072,1714327879957,-500.0,0.00011506,2]
[7073,1714327879968,-2399.5,0.00011506,2]
[7074,1714327879979,-500.0,0.00011506,2]
[7075,1714327879989,-620.93,0.00011506,2]
[7076,1714327879999,-4461.74,0.00011506,2]
[7077,1714327880010,-1929.02,0.00011506,2]
[7078,1714327880020,-1071.44,0.00011506,2]
[7079,1714327880029,-765.18,0.00011506,2]
[7081,1714327880048,-500.0,0.00011506,2]
[7083,1714327880067,-500.0,0.00011506,2]
[7085,1714327880085,-5479.7,0.00011506,2]
[7087,1714327880104,-500.0,0.00011506,2]
[7089,1714327880123,-871.78,0.00011506,2]
[7091,1714327880142,-500.0,0.00011506,2]
[7093,1714327880161,-2595.55,0.00011506,2]
[7095,1714327880179,-1384.68,0.00011506,2]
[7097,1714327880200,-2250.39,0.00011506,2]
[7099,1714327880219,-596.24,0.00011506,2]
[7101,1714327880238,-28768.8,0.00011506,2]
[7103,1714327880257,-500.0,0.00011506,2]
[7105,1714327880276,-62921.46,0.00011506,2]
[7107,1714327880296,-659.19,0.00011506,2]
[7109,1714327880315,-500.0,0.00011506,2]
[7111,1714327880338,-500.0,0.00011506,2]
[7113,1714327880357,-500.0,0.00011506,2]
[7115,1714327880376,-500.0,0.00011506,2]
[7116,1714327880386,-2374.97,0.00011506,2]
[7117,1714327880395,-1929.95,0.00011506,2]
[7119,1714327880414,-500.0,0.00011506,2]
[7120,1714327880424,-4726.78,0.00011506,2]
[7121,1714327880433,-2184.34,0.00011506,2]
[7122,1714327880442,-16038.69,0.00011506,2]
[7123,1714327880451,-500.0,0.00011506,2]
[7124,1714327880460,-1298.02,0.00011506,2]
[7125,1714327880470,-2260.54,0.00011506,2]
[7127,1714327880488,-792.96,0.00011506,2]
[7128,1714327880497,-1832.42,0.00011506,2]
[7129,1714327880506,-500.0,0.00011506,2]
[7130,1714327880515,-500.0,0.00011506,2]
[7131,1714327880525,-500.0,0.00011506,2]
[7133,1714327880544,-573.53,0.00011506,2]
[7134,1714327880554,-500.0,0.00011506,2]
[7135,1714327880563,-1458.57,0.00011506,2]
[7136,1714327880572,-1120.55,0.00011506,2]
[7137,1714327880582,-1477.73,0.00011506,2]
[7139,1714327880602,-500.0,0.00011506,2]
[7140,1714327880611,-2030.24,0.00011506,2]
[7141,1714327880621,-695.84,0.00011506,2]
[7143,1714327880640,-2625.9,0.00011506,2]